bitfinex/quotes_ETHUSD_20250804
["timestamp","ask_amount","ask_price","bid_price","bid_amount"]
[1754305737568,4.249,3566.2,3566.1,2.80418384]
[1754305737769,4.7156,3566.2,3566.1,5.94418384]
[1754305738390,4.7156,3566.2,3566.1,6.15619209]
[1754305739893,0.001,3566.3,3566.2,5.80410521]
[1754305740249,0.001,3566.3,3566.2,6.38615515]
[1754305740454,4.7156,3566.6,3566.5,5.80386933]
[1754305740684,4.7156,3566.6,3566.5,5.94386933]
[1754305743992,5.0642,3566.6,3566.5,5.94386933]
[1754305747301,4.7156,3566.6,3566.5,5.94386933]
[1754305748595,4.7166,3566.6,3566.5,5.94386933]
[1754305749005,4.25,3566.6,3566.5,5.94386933]
[1754305749696,4.7166,3566.6,3566.5,5.94386933]
[1754305751414,4.6666,3566.6,3566.5,5.94386933]
[1754305754988,4.2,3566.6,3566.5,6.38316933]
[1754305755416,4.2,3566.6,3566.5,5.94386933]
[1754305755598,4.6666,3566.6,3566.5,5.94386933]
[1754305756003,4.2,3566.6,3566.5,6.87486933]
[1754305756886,4.2,3566.6,3566.5,6.73486933]
[1754305757086,4.2,3566.6,3566.5,6.87486933]
[1754305757407,0.001,3566.6,3566.5,6.38316933]
[1754305757593,4.249,3566.6,3566.5,6.87296933]
[1754305761806,0.001,3566.6,3566.5,6.87296933]
[1754305763054,0.001,3566.8,3566.7,5.80371211]
[1754305763516,0.001,3566.8,3566.7,6.87791211]
[1754305766443,0.001,3566.8,3566.7,6.38811211]
[1754305766622,0.001,3566.8,3566.7,6.87791211]
[1754305770157,0.001,3567.0,3566.9,2.8035549]
[1754305770366,0.001,3567.0,3566.9,5.8035549]
[1754305770660,0.001,3567.0,3566.9,6.8777549]
[1754305771122,0.001,3567.0,3566.9,10.1905549]
[1754305771318,0.001,3567.0,3566.9,11.1247549]
[1754305773255,1e-08,3567.0,3566.9,11.1247549]
[1754305776865,1e-08,3567.2,3567.1,2.80339771]
[1754305777067,1e-08,3567.2,3567.1,17.37508984]
[1754305777366,0.001,3567.6,3567.5,2.80308339]
[1754305777563,0.001,3567.6,3567.5,17.51477552]
[1754305778070,0.001,3567.6,3567.5,18.44897552]
[1754305778276,14.57169213,3569.7,3567.8,2.80284769]
[1754305778277,0.14,3569.1,3567.8,2.80284769]
[1754305778475,4.247,3568.5,3568.3,5.94245495]
[1754305778636,4.247,3568.5,3568.4,5.80237641]
[1754305778836,4.7276,3568.5,3568.4,5.80237641]
[1754305780068,0.4806,3568.5,3568.4,5.80237641]
[1754305781137,0.14,3569.6,3569.5,5.80151281]
[1754305781366,6.735,3572.4,3569.6,5.80143433]
[1754305781367,0.4806,3569.7,3569.6,5.80143433]
[1754305781633,0.8292,3569.7,3569.6,5.80143433]
[1754305782476,4.278,3570.4,3569.5,3.01401627]
[1754305783779,0.4806,3569.7,3569.6,3.64324733]
[1754305784355,6.734,3572.3,3569.7,3.55]
[1754305784559,0.4806,3570.4,3570.3,2.80088507]
[1754305784731,0.4806,3570.7,3570.6,2.80064975]
[1754305784948,0.4806,3570.7,3570.6,5.80064975]
[1754305787081,0.4806,3570.7,3570.6,6.64217475]
[1754305787546,4.315,3570.8,3570.7,2.80057131]
[1754305787870,4.7834,3570.8,3570.7,2.80057131]
[1754305788650,4.7834,3570.8,3570.7,3.64209731]
[1754305791440,4.7834,3570.8,3570.7,3.78209731]
[1754305791641,4.7834,3570.8,3570.7,6.78209731]
[1754305791838,4.315,3570.8,3570.7,6.78209731]
[1754305792866,5.132,3570.8,3570.7,6.78209731]
[1754305793083,5.6453,3570.8,3570.7,0.14]
[1754305793668,5.2967,3570.8,3570.7,2.94057131]
[1754305793854,4.7834,3570.8,3570.7,2.94057131]
[1754305794372,4.7834,3570.8,3570.7,0.14]
[1754305794545,5.132,3570.8,3570.7,0.14]
[1754305797641,5.132,3570.8,3570.1,2.80104033]
[1754305797642,5.132,3570.8,3570.2,3.0]
[1754305797842,4.315,3570.8,3570.6,0.14]
[1754305798080,1.2485,3570.7,3570.6,0.14]
[1754305798277,1.2485,3570.7,3570.0,2.80107525]
[1754305798481,0.817,3570.6,3570.3,0.14]
[1754305798776,4.305,3570.5,3570.3,0.14]
[1754305798977,0.817,3570.4,3570.3,0.14]
[1754305799560,0.817,3570.4,3569.9,2.8011879]
[1754305799867,0.4684,3570.3,3570.2,0.14]
[1754305800181,0.817,3570.3,3569.6,2.80142349]
[1754305800377,0.817,3570.3,3570.0,0.14]
[1754305800378,4.871735,3570.2,3570.0,0.14]
[1754305800542,4.871735,3570.2,3569.5,0.21254455]
[1754305800543,5.011735,3570.2,3569.7,0.14]
[1754305800741,0.817,3570.1,3569.7,0.14]
[1754305800942,0.817,3570.0,3569.0,3.64382021]
[1754305801164,4.871735,3570.2,3569.3,0.14]
[1754305801165,0.14,3569.8,3569.3,0.14]
[1754305801370,4.8873,3569.7,3569.3,0.14]
[1754305801567,0.3486,3569.6,3569.3,0.14]
[1754305801768,0.3486,3569.5,3568.8,3.0]
[1754305802009,4.7754,3569.4,3569.1,0.14]
[1754305802186,0.817,3569.3,3569.1,0.14]
[1754305802481,0.817,3569.3,3569.1,0.35031595]
[1754305802669,0.4684,3569.2,3569.1,0.35031595]
[1754305802874,0.4684,3569.2,3569.1,0.14]
[1754305803692,0.4684,3569.2,3568.3,2.80242228]
[1754305803897,4.306,3569.1,3568.7,0.14]
[1754305804079,0.817,3569.0,3568.7,0.14]
[1754305804468,0.3486,3569.0,3568.7,0.14]
[1754305804652,4.306,3569.1,3568.7,0.34972678]
[1754305804852,0.4684,3569.0,3568.7,0.14]
[1754305805091,4.306,3569.1,3568.7,0.14]
[1754305805264,0.4684,3568.9,3568.7,0.14]
[1754305805584,4.306,3568.8,3568.7,0.14]
[1754305805789,4.7744,3568.8,3568.7,0.14]
[1754305805992,4.306,3568.8,3568.7,3.37734083]
[1754305806202,4.306,3568.8,3568.7,8.05640344]
[1754305806896,4.305,3568.9,3568.8,5.80206231]
[1754305807064,0.4684,3569.8,3569.1,2.80176379]
[1754305807266,4.306,3569.7,3569.5,0.14]
[1754305807666,0.4684,3569.6,3569.5,0.14]
[1754305809551,0.817,3569.6,3569.3,0.14]
[1754305810094,0.4684,3569.5,3569.3,0.14]
[1754305810297,4.305,3569.4,3569.3,0.14]
[1754305810498,4.7734,3569.4,3569.3,0.14]
[1754305812397,4.7734,3569.4,3568.8,3.23723024]
[1754305812597,4.7734,3569.4,3568.7,0.21115764]
[1754305812598,0.4684,3569.3,3568.7,0.21115764]
[1754305812898,0.4684,3569.3,3569.0,0.14]
[1754305813222,1.1239995,3569.3,3569.0,0.14]
[1754305813439,0.957,3569.2,3568.7,0.14]
[1754305813593,4.303,3569.1,3568.7,0.14]
[1754305813923,0.4684,3569.0,3568.7,0.14]
[1754305814133,0.4684,3568.9,3568.8,0.002]
[1754305814551,4.303,3569.1,3568.8,0.002]
[1754305814709,0.4684,3568.9,3568.8,0.002]
[1754305815805,0.50342479,3568.9,3568.8,0.002]
[1754305816109,1.34650248,3568.9,3568.8,0.002]
[1754305816506,1.03292727,3568.9,3568.8,0.002]
[1754305816707,0.99790248,3568.9,3568.8,0.002]
[1754305817107,1.34650248,3568.9,3568.8,0.002]
[1754305817514,1.93152727,3568.9,3568.8,0.002]
[1754305818549,1.89650248,3568.9,3568.8,0.002]
[1754305823652,1.54790248,3568.9,3568.8,0.002]
[1754305827567,1.89650248,3568.9,3568.8,0.002]
[1754305829147,1.54790248,3568.9,3568.8,0.002]
[1754305832475,5.84090248,3568.9,3568.8,0.002]
[1754305832625,8.64288628,3568.9,3568.8,0.002]
[1754305832988,5.84090248,3568.9,3568.8,0.002]
[1754305836632,5.84190248,3568.9,3568.8,0.002]
[1754305837336,4.434,3568.9,3568.8,0.9298]
[1754305837669,4.43,3568.9,3568.8,0.9298]
[1754305839077,4.29,3568.9,3568.8,0.9298]
[1754305839529,4.29,3568.9,3568.8,3.73186231]
[1754305839731,4.29,3568.9,3568.8,3.87186231]
[1754305840381,4.29,3568.9,3568.8,1.0698]
[1754305841445,4.69095842,3568.9,3568.8,0.002]
[1754305841645,5.17095842,3568.9,3568.8,0.002]
[1754305842244,5.31095842,3568.9,3568.8,0.002]
[1754305842566,4.91,3568.9,3568.8,0.002]
[1754305844968,5.46,3568.9,3568.8,0.002]
[1754305847284,5.8086,3568.9,3568.8,0.002]
[1754305848654,5.46,3568.9,3568.8,0.002]
[1754305849050,5.8086,3568.9,3568.8,0.002]
[1754305849257,7.37814621,3568.9,3568.8,0.002]
[1754305850996,14.42814621,3568.9,3568.8,0.002]
[1754305851966,28.7822733,3568.9,3568.8,0.002]
[1754305852300,61.7822733,3568.9,3568.8,0.002]
[1754305852504,64.7382733,3568.9,3568.8,0.002]
[1754305858906,64.3896733,3568.9,3568.8,0.002]
[1754305859927,64.7382733,3568.9,3568.8,0.002]
[1754305860377,60.9536733,3568.9,3568.8,0.002]
[1754305860709,49.40153001,3568.9,3568.8,0.002]
[1754305860911,4.43,3568.9,3568.8,0.4636]
[1754305861087,4.43,3568.9,3568.8,0.9407]
[1754305861805,4.98,3568.9,3568.8,0.9407]
[1754305862105,7.43,3568.9,3568.8,0.9407]
[1754305862703,7.98,3568.9,3568.8,0.9407]
[1754305863607,4.98,3568.9,3568.8,0.9407]
[1754305868376,6.76317495,3568.9,3568.8,0.9407]
[1754305869219,6.76317495,3568.9,3568.8,0.4636]
[1754305871693,9.56515875,3568.9,3568.8,0.002]
[1754305871911,10.03235875,3568.9,3568.8,0.002]
[1754305872117,7.23037495,3568.9,3568.8,0.002]
[1754305872311,10.03235875,3568.9,3568.8,0.002]
[1754305874937,16.33695875,3568.9,3568.8,0.002]
[1754305875135,46.33695875,3568.9,3568.8,0.002]
[1754305875900,55.07195875,3568.9,3568.8,0.002]
[1754305876541,40.99337641,3568.4,3568.3,0.002]
[1754305876709,45.41437641,3568.4,3568.3,0.002]
[1754305877102,46.21497641,3568.4,3568.3,0.002]
[1754305877539,0.55,3567.0,3566.8,0.4695]
[1754305877749,4.971,3566.9,3566.8,0.002]
[1754305877917,5.78349732,3566.9,3566.8,0.002]
[1754305878117,5.74845289,3566.9,3566.8,0.002]
[1754305878811,5.74845289,3566.9,3566.8,0.4695]
[1754305879836,5.74845289,3566.9,3566.8,0.002]
[1754305880213,6.20045289,3566.9,3566.8,0.002]
[1754305882453,5.74845289,3566.9,3566.8,0.002]
[1754305882963,4.421,3566.9,3566.8,0.9484]
[1754305884009,4.281,3566.9,3566.8,0.9484]
[1754305884309,0.14,3567.0,3566.8,0.9484]
[1754305884511,0.14,3567.0,3566.9,0.9464]
[1754305884850,4.422,3567.0,3566.9,0.9464]
[1754305885057,4.282,3567.0,3566.9,0.9464]
[1754305899069,4.277,3567.0,3566.9,0.9464]
[1754305900457,4.277,3567.0,3566.9,0.4675]
[1754305900964,4.277,3567.0,3566.9,0.9464]
[1754305901670,4.277,3567.0,3566.9,0.9484]
[1754305904571,4.277,3567.0,3566.9,0.4695]
[1754305905790,4.277,3567.0,3566.9,0.9484]
[1754305906945,4.277,3567.0,3566.9,0.002]
[1754305907308,4.277,3567.0,3566.9,0.468]
[1754305907480,4.7286,3567.0,3566.9,0.002]
[1754305907647,6.3938,3567.0,3566.9,0.002]
[1754305908161,6.7424,3567.0,3566.9,0.002]
[1754305908365,6.3938,3567.0,3566.9,0.002]
[1754305918968,13.4438,3567.0,3566.9,0.002]
[1754305920403,13.7924,3567.0,3566.9,0.002]
[1754305920908,13.4438,3567.0,3566.9,0.002]
[1754305928616,12.9922,3567.0,3566.9,0.002]
[1754305928923,12.9922,3567.0,3566.9,0.9336]
[1754305929591,11.315,3567.0,3566.9,0.9336]
[1754305942843,6.735,3567.3,3567.0,2.80347631]
[1754305943001,6.735,3567.3,3567.2,2.80331912]
[1754305943186,6.735,3567.3,3567.2,3.91191912]
[1754305943187,10.998,3567.3,3567.2,3.91191912]
[1754305944293,4.263,3567.3,3567.2,6.91191912]
[1754305944490,4.263,3567.3,3567.2,6.77191912]
[1754305944794,4.263,3567.3,3567.2,6.91191912]
[1754305945396,4.263,3567.3,3567.2,3.91185869]
[1754305945834,0.477,3568.0,3567.4,2.8031364]
[1754305946042,4.263,3567.9,3567.4,2.8031364]
[1754305946203,4.263,3567.9,3567.5,0.9686]
[1754305946803,4.263,3567.9,3567.6,1.1086]
[1754305947039,4.263,3567.9,3567.7,0.9686]
[1754305947339,4.263,3567.9,3567.8,0.471]
[1754305948657,4.263,3567.9,3567.8,0.6776488]
[1754305951673,4.263,3567.9,3567.6,0.14]
[1754305951674,5.228,3567.9,3567.6,0.14]
[1754305951836,0.8256,3567.8,3567.2,0.14]
[1754305952019,4.739,3567.7,3567.2,0.14]
[1754305952447,0.477,3567.6,3567.3,0.471]
[1754305952722,4.739,3567.5,3567.3,0.471]
[1754305953122,4.262,3567.5,3567.1,0.471]
[1754305953457,0.477,3567.4,3567.1,0.471]
[1754305953657,4.262,3567.3,3567.1,0.471]
[1754305954156,4.262,3567.3,3567.2,0.471]
[1754305954363,4.262,3567.3,3567.2,0.9686]
[1754305954560,4.262,3567.3,3567.2,3.91191912]
[1754305954934,4.262,3567.3,3567.2,1.1086]
[1754305955555,4.262,3567.3,3567.2,0.611]
[1754305956056,4.262,3567.3,3567.2,0.14]
[1754305956228,4.739,3567.3,3566.9,2.80555279]
[1754305956427,4.739,3567.3,3567.1,0.14]
[1754305958158,4.262,3567.3,3567.1,0.14]
[1754305958465,4.262,3567.3,3567.2,0.9686]
[1754305959258,4.262,3567.3,3567.2,3.77191912]
[1754305959440,4.262,3567.3,3567.2,0.9686]
[1754305960327,4.262,3567.3,3567.2,3.77191912]
[1754305960938,4.262,3567.3,3567.2,0.9686]
[1754305961162,4.739,3567.3,3567.1,0.14]
[1754305961364,0.477,3567.2,3566.9,0.142]
[1754305961564,0.477,3567.2,3566.9,0.002]
[1754305961755,0.8256,3567.2,3566.9,0.002]
[1754305962261,0.477,3567.1,3566.9,0.002]
[1754305962464,4.8282,3567.3,3566.9,0.002]
[1754305962762,0.477,3567.0,3566.9,0.002]
[1754305968179,4.262,3567.0,3566.9,1.1109]
[1754305968969,4.262,3567.0,3566.9,0.142]
[1754305969215,4.262,3567.0,3566.9,0.6155]
[1754305970058,4.262,3567.0,3566.9,1.1109]
[1754305971515,4.262,3567.0,3566.9,0.6155]
[1754305971708,4.7311,3567.0,3566.9,0.142]
[1754305972472,4.262,3567.0,3566.9,0.142]
[1754305973092,4.262,3567.0,3566.9,0.6155]
[1754305973391,4.262,3567.0,3566.9,3.4190549]
[1754305973988,4.262,3567.0,3566.9,3.9144549]
[1754305974858,4.262,3567.0,3566.9,1.1109]
[1754305975193,4.262,3567.0,3566.9,2.9455549]
[1754305975362,4.262,3567.0,3566.9,3.4190549]
[1754305976792,4.262,3567.0,3566.9,3.9144549]
[1754305978008,4.262,3567.0,3566.9,1.1109]
[1754305978182,4.262,3567.0,3566.9,3.9144549]
[1754305978694,4.7311,3567.0,3566.9,0.142]
[1754305979215,4.7311,3567.0,3566.9,0.002]
[1754305979361,5.20421,3567.0,3566.9,0.002]
[1754305980561,4.262,3567.0,3566.9,0.002]
[1754305981194,0.4691,3567.6,3567.0,2.80340361]
[1754305981494,0.4691,3567.6,3567.1,1.1089]
[1754305981495,4.262,3567.5,3567.1,1.1089]
[1754305981662,4.7311,3567.5,3567.2,0.4735]
[1754305982062,4.262,3567.5,3567.2,0.4735]
[1754305982262,0.4691,3567.4,3567.2,0.4735]
[1754305982581,4.262,3567.5,3567.2,0.4735]
[1754305982786,4.262,3567.5,3567.1,2.9433933]
[1754305982994,4.262,3567.5,3567.3,0.4735]
[1754305983610,4.262,3567.5,3567.1,2.9433933]
[1754305983807,0.4691,3567.4,3567.1,2.9433933]
[1754305983967,0.4691,3567.4,3567.1,0.6135]
[1754305984399,0.4691,3567.4,3567.1,3.41689241]
[1754305985100,4.262,3567.5,3567.3,2.80319334]
[1754305985490,4.262,3567.5,3567.3,0.4735]
[1754305986368,4.7311,3567.5,3567.3,0.4735]
[1754305986604,4.262,3567.5,3567.4,0.9689]
[1754305986823,4.262,3567.5,3567.4,0.4735]
[1754305988473,4.262,3567.5,3567.3,0.14]
[1754305988699,4.7311,3567.5,3567.3,0.14]
[1754305988907,0.4691,3567.4,3567.3,0.14]
[1754305989870,6.737,3567.7,3567.4,2.803104]
[1754305990065,4.262,3567.6,3567.5,2.94303729]
[1754305990680,6.737,3567.7,3567.6,2.80300482]
[1754305990881,10.999,3567.7,3567.6,2.80300482]
[1754305991076,6.737,3567.7,3567.6,3.27650482]
[1754305991383,10.999,3567.7,3567.6,3.27650482]
[1754305991596,6.737,3567.7,3567.6,3.77190482]
[1754305991898,10.999,3567.7,3567.6,7.97685691]
[1754305992099,6.737,3567.7,3567.6,7.97685691]
[1754305992404,6.737,3567.7,3567.6,8.11685691]
[1754305992703,10.999,3567.7,3567.6,8.11685691]
[1754305995576,10.999,3567.7,3567.6,5.94300482]
[1754305995987,4.262,3567.7,3567.6,6.41650482]
[1754305996415,4.262,3567.7,3567.6,6.87320482]
[1754306003253,4.262,3567.7,3567.6,3.14]
[1754306003459,4.7178,3567.7,3567.6,0.14]
[1754306003747,5.18958,3567.7,3567.6,0.14]
[1754306003901,5.18958,3567.7,3567.4,0.14]
[1754306004102,0.4558,3567.6,3567.3,0.14]
[1754306004540,0.4558,3567.6,3567.2,0.002]
[1754306004739,0.4558,3567.6,3567.2,3.142]
[1754306004929,0.8044,3567.6,3567.2,3.142]
[1754306005130,0.4558,3567.6,3567.2,3.142]
[1754306005331,0.4558,3567.5,3567.2,0.142]
[1754306005522,4.261,3567.4,3567.2,0.142]
[1754306005723,0.4558,3567.3,3567.2,0.142]
[1754306008151,0.9444,3567.3,3567.2,0.002]
[1754306008347,2.0717218,3567.3,3567.2,0.002]
[1754306009252,2.1067623,3567.3,3567.2,0.002]
[1754306012408,4.91000284,3567.3,3567.2,0.002]
[1754306012610,11.96000284,3567.3,3567.2,0.002]
[1754306012854,11.92496234,3567.3,3567.2,0.002]
[1754306013035,44.92496234,3567.3,3567.2,0.002]
[1754306013236,59.43310563,3567.3,3567.2,0.002]
[1754306013438,59.43310563,3567.3,3567.1,0.002]
[1754306013439,40.99431912,3567.2,3567.1,0.002]
[1754306013639,40.99431912,3567.2,3566.9,0.002]
[1754306013640,9.30947631,3567.0,3566.9,0.002]
[1754306013847,43.57047631,3567.0,3566.9,0.002]
[1754306014227,44.51487631,3567.0,3566.9,0.002]
[1754306014814,41.55887631,3567.0,3566.9,0.002]
[1754306018852,40.55,3566.6,3566.5,0.002]
[1754306019008,52.30793401,3566.6,3566.5,0.002]
[1754306019211,53.11233401,3566.6,3566.5,0.002]
[1754306019518,60.15833401,3566.6,3566.5,0.002]
[1754306021649,60.29984633,3566.6,3566.5,0.002]
[1754306021855,63.1680934,3566.6,3566.5,0.002]
[1754306023688,51.61595011,3566.6,3566.5,0.002]
[1754306023920,46.86383779,3566.6,3566.5,0.002]
[1754306024087,51.12683779,3566.6,3566.5,0.002]
[1754306024578,51.27118459,3566.6,3566.5,0.002]
[1754306024779,51.61978459,3566.6,3566.5,0.002]
[1754306027117,51.27118459,3566.6,3566.5,0.002]
[1754306028294,51.61978459,3566.6,3566.5,0.002]
[1754306028716,54.57678459,3566.6,3566.5,0.002]
[1754306031615,56.26178459,3566.6,3566.5,0.002]
[1754306032004,3.35410521,3566.2,3565.7,0.449]
[1754306032317,67.16340045,3566.2,3565.7,0.449]
[1754306032496,67.58624914,3566.2,3565.7,0.449]
[1754306032699,67.72624914,3566.2,3565.7,0.449]
[1754306033818,70.68324914,3566.2,3565.5,0.449]
[1754306034321,70.68324914,3566.2,3565.5,0.4754]
[1754306034521,70.68324914,3566.2,3565.6,0.449]
[1754306035901,70.68324914,3566.2,3565.6,0.9244]
[1754306036101,70.68324914,3566.2,3565.7,0.449]
[1754306036305,72.36824914,3566.2,3565.7,0.449]
[1754306037002,72.36824914,3566.2,3565.7,0.9244]
[1754306037390,40.55,3565.8,3564.8,0.035602]
[1754306037591,0.69,3564.9,3564.8,0.035602]
[1754306037795,4.953,3564.9,3564.8,0.035602]
[1754306038027,4.953,3564.9,3564.8,0.960002]
[1754306040746,0.69,3564.9,3564.8,0.960002]
[1754306040900,4.953,3564.9,3564.8,0.960002]
[1754306044612,11.694,3564.9,3564.8,0.960002]
[1754306045634,11.144,3564.9,3564.8,0.960002]
[1754306053638,6.881,3564.9,3564.8,0.960002]
[1754306053821,11.144,3564.9,3564.8,0.960002]
[1754306055543,11.144,3564.9,3564.8,0.484602]
[1754306056919,11.144,3564.9,3564.8,0.504502]
[1754306057120,11.144,3564.9,3564.8,0.934902]
[1754306057345,11.144,3564.9,3564.8,0.466002]
[1754306057550,11.694,3564.9,3564.8,0.466002]
[1754306057846,12.694,3564.9,3564.8,0.466002]
[1754306059113,12.694,3564.9,3564.8,0.934902]
[1754306059740,8.431,3564.9,3564.8,0.934902]
[1754306059942,12.144,3564.9,3564.8,0.934902]
[1754306062650,7.881,3564.9,3564.8,0.934902]
[1754306062854,12.144,3564.9,3564.8,0.934902]
[1754306067416,13.144,3564.9,3564.8,0.934902]
[1754306071257,13.144,3564.9,3564.8,0.466002]
[1754306073751,13.6395,3564.9,3564.8,0.035602]
[1754306076835,13.144,3564.9,3564.8,0.934902]
[1754306078669,8.881,3564.9,3564.8,0.466002]
[1754306078859,13.143,3564.9,3564.8,0.466002]
[1754306079770,13.6385,3564.9,3564.8,0.035602]
[1754306080340,15.70635,3564.9,3564.8,0.035602]
[1754306080572,16.25635,3564.9,3564.8,0.035602]
[1754306082373,15.76085,3564.9,3564.8,0.466002]
[1754306082746,15.76085,3564.9,3564.8,0.934902]
[1754306082947,11.49885,3564.9,3564.8,0.934902]
[1754306083245,15.76085,3564.9,3564.8,0.466002]
[1754306083452,8.881,3564.9,3564.8,0.466002]
[1754306083658,13.143,3564.9,3564.8,0.934902]
[1754306084058,8.881,3564.9,3564.8,0.934902]
[1754306084258,13.143,3564.9,3564.8,0.934902]
[1754306087886,13.143,3564.9,3564.8,0.466002]
[1754306088484,13.6353,3564.9,3564.8,0.035602]
[1754306088981,13.143,3564.9,3564.8,0.035602]
[1754306089279,13.143,3564.9,3564.8,0.501902]
[1754306090575,13.6353,3564.9,3564.8,0.035602]
[1754306091583,13.143,3564.9,3564.8,0.035602]
[1754306092151,13.6353,3564.9,3564.8,0.035602]
[1754306092347,15.95458799,3564.9,3564.8,0.035602]
[1754306092588,23.34318799,3564.9,3564.8,0.035602]
[1754306092884,26.14831576,3564.9,3564.8,0.035602]
[1754306094498,23.34318799,3564.9,3564.8,0.035602]
[1754306094656,26.14831576,3564.9,3564.8,0.035602]
[1754306096156,23.34318799,3564.9,3564.8,0.035602]
[1754306096461,26.14831576,3564.9,3564.8,0.035602]
[1754306096686,23.34318799,3564.9,3564.8,0.035602]
[1754306097389,22.99458799,3564.9,3564.8,0.035602]
[1754306100500,18.24028799,3564.9,3564.8,0.035602]
[1754306100695,20.732,3564.9,3564.8,0.975202]
[1754306101260,20.732,3564.9,3564.8,0.035602]
[1754306101457,16.9633,3564.9,3564.8,0.035602]
[1754306101674,22.92063,3564.9,3564.8,0.035602]
[1754306103400,18.65963,3564.9,3564.8,0.035602]
[1754306103576,26.07435777,3564.9,3564.8,0.035602]
[1754306104269,40.62650106,3564.9,3564.8,0.035602]
[1754306104468,70.62650106,3564.9,3564.8,0.035602]
[1754306110769,66.36550106,3564.9,3564.8,0.035602]
[1754306111002,70.62650106,3564.9,3564.8,0.035602]
[1754306111498,33.55,3564.5,3564.4,0.002]
[1754306111702,40.67924707,3564.5,3564.4,0.002]
[1754306111874,41.17154707,3564.5,3564.4,0.002]
[1754306112603,41.31154707,3564.5,3564.4,0.002]
[1754306112910,13.01264507,3564.5,3564.4,0.9416]
[1754306113074,14.405398,3564.5,3564.4,0.9416]
[1754306113273,14.955398,3564.5,3564.4,0.9416]
[1754306115409,11.955398,3564.5,3564.4,0.9416]
[1754306120631,11.955398,3564.5,3564.4,0.4731]
[1754306120921,11.955398,3564.5,3564.4,0.9619]
[1754306121122,11.905398,3564.5,3564.4,0.9619]
[1754306121806,7.644398,3564.5,3564.4,0.9619]
[1754306122114,11.904398,3564.5,3564.4,0.9619]
[1754306122417,7.644398,3564.5,3564.4,0.9619]
[1754306123035,11.904398,3564.5,3564.4,0.9619]
[1754306123397,7.094398,3564.5,3564.4,0.9619]
[1754306123715,11.354398,3564.5,3564.4,0.9619]
[1754306124783,7.094398,3564.5,3564.4,0.9619]
[1754306125121,11.354398,3564.5,3564.4,0.9619]
[1754306125343,11.904398,3564.5,3564.4,0.002]
[1754306125534,12.365198,3564.5,3564.4,0.002]
[1754306125732,11.904398,3564.5,3564.4,0.002]
[1754306125945,11.904398,3564.5,3564.4,0.4731]
[1754306126943,11.904398,3564.5,3564.4,0.9619]
[1754306129367,8.741,3564.9,3564.4,0.9619]
[1754306129667,8.741,3564.9,3564.5,0.9599]
[1754306129668,4.26,3564.8,3564.5,0.9599]
[1754306129966,4.26,3564.8,3564.6,0.9599]
[1754306130125,4.26,3564.8,3564.4,0.002]
[1754306130126,1.0108,3564.7,3564.4,0.002]
[1754306130325,0.55,3564.5,3564.4,0.002]
[1754306130726,1.0108,3564.5,3564.4,0.002]
[1754306133430,1.0108,3564.5,3564.4,0.4731]
[1754306133638,0.55,3564.5,3564.4,0.9619]
[1754306136184,0.55,3564.5,3564.4,0.4731]
[1754306137176,0.55,3564.5,3564.4,0.002]
[1754306137375,2.3683298,3564.5,3564.4,0.002]
[1754306137705,10.0,3564.4,3563.4,0.002]
[1754306137984,17.90837312,3563.5,3563.4,0.002]
[1754306138271,3.55,3563.4,3563.0,0.002]
[1754306138471,0.55,3563.2,3563.0,0.002]
[1754306138645,11.59608181,3563.1,3563.0,0.002]
[1754306138845,12.0218,3563.1,3563.0,0.002]
[1754306139478,42.1618,3563.1,3563.0,0.002]
[1754306139775,48.37864707,3563.1,3563.0,0.002]
[1754306140865,48.03004707,3563.1,3563.0,0.002]
[1754306141283,17.57024707,3563.1,3563.0,0.002]
[1754306142876,18.03104707,3563.1,3563.0,0.002]
[1754306143497,13.30124707,3563.1,3563.0,0.002]
[1754306143701,14.701,3563.1,3563.0,0.4731]
[1754306143917,7.433,3563.1,3563.0,0.4731]
[1754306144205,7.433,3563.1,3563.0,0.9619]
[1754306144206,11.701,3563.1,3563.0,0.9619]
[1754306145297,11.701,3563.1,3563.0,0.002]
[1754306147300,11.701,3563.1,3563.0,0.4586]
[1754306147501,11.7,3563.1,3563.0,0.9575]
[1754306148917,7.433,3563.1,3563.0,0.9575]
[1754306149096,11.7,3563.1,3563.0,0.9575]
[1754306149795,11.699,3563.1,3563.0,0.9575]
[1754306152906,18.703398,3563.1,3563.0,0.9575]
[1754306153409,18.703398,3563.1,3563.0,0.4586]
[1754306156528,18.703398,3563.1,3563.0,0.002]
[1754306157633,19.202498,3563.1,3563.0,0.002]
[1754306157822,21.1227478,3563.1,3563.0,0.002]
[1754306158352,21.4713478,3563.1,3563.0,0.002]
[1754306158898,21.1227478,3563.1,3563.0,0.002]
[1754306159152,16.8567478,3563.1,3563.0,0.002]
[1754306159335,21.1207478,3563.1,3563.0,0.002]
[1754306160809,16.8567478,3563.1,3563.0,0.002]
[1754306161219,21.1197478,3563.1,3563.0,0.002]
[1754306161635,54.27489266,3563.1,3563.0,0.002]